fUST/lending_fUST_20250520
["ID","MTS","AMOUNT","RATE_DAILY","PERIOD"]
[361744452,1747751437374,-276.185012,0.00016712,2]
[361744453,1747751437383,-154.83282982,0.00016712,2]
[361744454,1747751437394,-276.185012,0.00016712,2]
[361744455,1747751437403,-276.185012,0.00016712,2]
[361744456,1747751437412,-151.0,0.00016712,2]
[361744457,1747751437421,-151.0,0.00016712,2]
[361744458,1747751437431,-430.0,0.00016712,2]
[361744459,1747751437440,-430.0,0.00016712,2]
[361744460,1747751437450,-430.0,0.00016712,2]
[361744461,1747751437460,-470.0,0.00016712,2]
[361744462,1747751437470,-430.0,0.00016712,2]
[361744463,1747751437479,-430.0,0.00016712,2]
[361744464,1747751437488,-470.0,0.00016712,2]
[361744465,1747751437498,-470.0,0.00016712,2]
[361744466,1747751437508,-430.0,0.00016712,2]
[361744467,1747751437517,-479.12,0.00016712,2]
[361744468,1747751437527,-430.0,0.00016712,2]
[361744469,1747751437537,-430.0,0.00016712,2]
[361744470,1747751437546,-430.0,0.00016712,2]
[361744471,1747751437556,-430.0,0.00016712,2]
[361744472,1747751437567,-430.0,0.00016712,2]
[361744473,1747751437577,-430.0,0.00016712,2]
[361744474,1747751437586,-1063.09,0.00016712,2]
[361744475,1747751437597,-279.41702105,0.00016712,2]
[361744476,1747751437606,-430.0,0.00016712,2]
[361744477,1747751437616,-134.15794714,0.00016712,2]
[361744478,1747751437630,-295.84205286,0.00016712,2]
[361744479,1747751437640,-431.71,0.00016712,2]
[361744480,1747751437650,-430.0,0.00016712,2]
[361744481,1747751437659,-470.0,0.00016712,2]
[361744482,1747751437669,-199.00595362,0.00016712,2]
[361744483,1747751437678,-430.0,0.00016712,2]
[361744484,1747751437688,-436.08,0.00016712,2]
[361744485,1747751437697,-430.0,0.00016712,2]
[361744486,1747751437707,-470.0,0.00016712,2]
[361744487,1747751437716,-151.0,0.00016712,2]
[361744488,1747751437725,-151.0,0.00016712,2]
[361744489,1747751437735,-430.0,0.00016712,2]
[361744490,1747751437745,-151.0,0.00016712,2]
[361744491,1747751437754,-162.642808,0.00016712,2]
[361744492,1747751437764,-430.0,0.00016712,2]
[361744493,1747751437773,-1487.42,0.00016712,2]
[361744494,1747751437783,-493.45,0.00016712,2]
[361744495,1747751437792,-430.0,0.00016712,2]
[361744496,1747751437802,-430.0,0.00016712,2]
[361744497,1747751437812,-430.0,0.00016712,2]
[361744498,1747751437821,-481.22,0.00016712,2]
[361744499,1747751437831,-470.0,0.00016712,2]
[361744500,1747751437840,-430.0,0.00016712,2]
[361744501,1747751437850,-470.0,0.00016712,2]
[361744502,1747751437860,-430.0,0.00016712,2]
[361744503,1747751437870,-724.86,0.00016712,2]
[361744505,1747751437879,-529.42,0.00016712,2]
[361744506,1747751437889,-170.0,0.00016712,2]
[361744507,1747751437899,-533.85,0.00016712,2]
[361744508,1747751437909,-170.0,0.00016712,2]
[361744509,1747751437920,-472.03,0.00016712,2]
[361744510,1747751437930,-170.0,0.00016712,2]
[361744511,1747751437940,-170.0,0.00016712,2]
[361744512,1747751437952,-306.94734463,0.00016712,2]
[361744513,1747751437961,-1104.88,0.00016712,2]
[361744514,1747751437972,-576.78,0.00016712,2]
[361744515,1747751437982,-158.1192336,0.00016795,2]
[361744516,1747751437992,-569.8226027,0.00016795,2]
[361744517,1747751438003,-569.8226027,0.00016795,2]
[361744518,1747751438014,-593.9329685,0.00016795,2]
[361744519,1747751438023,-175.9907377,0.00016795,2]
[361744520,1747751438033,-158.1192336,0.00016795,2]
[361744521,1747751438043,-569.8226027,0.00016795,2]
[361744522,1747751438053,-569.8226027,0.00016795,2]
[361744523,1747751438062,-175.9907377,0.00016795,2]
[361744524,1747751438073,-158.1192336,0.00016795,2]
[361744525,1747751438082,-175.9907377,0.00016795,2]
[361744526,1747751438092,-153.0,0.00016795,2]
[361744527,1747751438101,-158.1192336,0.00016795,2]
[361744528,1747751438111,-569.8226027,0.00016795,2]
[361744529,1747751438121,-174.5828222,0.00016795,2]
[361744530,1747751438131,-158.1192336,0.00016795,2]
[361744531,1747751438141,-566.0108918,0.00016795,2]
[361744532,1747751438151,-153.0,0.00016795,2]
[361744533,1747751438161,-351.9814754,0.00016795,2]
[361744534,1747751438172,-153.0,0.00016795,2]
[361744535,1747751438183,-175.9907377,0.00016795,2]
[361744536,1747751438193,-175.9907377,0.00016795,2]
[361744537,1747751438203,-175.9907377,0.00016795,2]
[361744538,1747751438214,-6612.66644702,0.00016797,2]
[361744539,1747751438227,-151.0,0.000168,2]
[361744540,1747751438238,-206.585936,0.000168,2]
[361744541,1747751438248,-206.585936,0.000168,2]
[361744542,1747751438259,-276.185012,0.000168,2]
[361744543,1747751438269,-276.185012,0.000168,2]
[361744544,1747751438279,-151.0,0.000168,2]
[361744545,1747751438289,-151.0,0.000168,2]
[361744546,1747751438299,-842.07683718,0.00016897,2]
[361744547,1747751438311,-206.585936,0.00016934,2]
[361744548,1747751438322,-206.585936,0.00016934,2]
[361744549,1747751438331,-151.0,0.00016935,2]
[361744550,1747751438341,-151.0,0.00016935,2]
[361744551,1747751438351,-151.0,0.00016935,2]
[361744552,1747751438360,-173.888857,0.00016986,2]
[361744553,1747751438370,-151.0,0.00016986,2]
[361744554,1747751438380,-430.0,0.00016986,2]
[361744555,1747751438389,-206.585936,0.00016986,2]
[361744556,1747751438399,-206.585936,0.00016986,2]
[361744557,1747751438408,-151.0,0.00016986,2]
[361744558,1747751438418,-151.0,0.00016986,2]
[361744559,1747751438427,-430.0,0.00016986,2]
[361744560,1747751438438,-276.185012,0.00016986,2]
[361744561,1747751438448,-276.185012,0.00016986,2]
[361744562,1747751438458,-151.0,0.00016986,2]
[361744563,1747751438468,-430.0,0.00016986,2]
[361744564,1747751438478,-430.0,0.00016986,2]
[361744565,1747751438488,-430.0,0.00016986,2]
[361744566,1747751438499,-430.0,0.00016986,2]
[361744567,1747751438508,-430.0,0.00016986,2]
[361744568,1747751438518,-430.0,0.00016986,2]
[361744569,1747751438527,-479.12,0.00016986,2]
[361744570,1747751438538,-490.0,0.00016986,2]
[361744571,1747751438548,-490.0,0.00016986,2]
[361744572,1747751438558,-490.0,0.00016986,2]
[361744573,1747751438567,-430.0,0.00016986,2]
[361744574,1747751438577,-430.0,0.00016986,2]
[361744575,1747751438587,-309.31331712,0.00016986,2]
[361744576,1747751438597,-1063.09,0.00016986,2]
[361744577,1747751438606,-430.0,0.00016986,2]
[361744578,1747751438615,-430.0,0.00016986,2]
[361744579,1747751438624,-431.71,0.00016986,2]
[361744580,1747751438634,-430.0,0.00016986,2]
[361744581,1747751438644,-430.0,0.00016986,2]
[361744582,1747751438653,-436.08,0.00016986,2]
[361744583,1747751438663,-430.0,0.00016986,2]
[361744584,1747751438673,-151.0,0.00016986,2]
[361744585,1747751438683,-430.0,0.00016986,2]
[361744586,1747751438693,-430.0,0.00016986,2]
[361744587,1747751438702,-1262.95287752,0.00016986,2]
[361744592,1747751438771,-224.46712248,0.00016986,2]
[361744593,1747751438949,-493.45,0.00016986,2]
[361744594,1747751438959,-142.48770507,0.00016986,2]
[361744595,1747751438971,-287.51229493,0.00016986,2]
[361744596,1747751438982,-430.0,0.00016986,2]
[361744597,1747751438991,-430.0,0.00016986,2]
[361744598,1747751439000,-481.22,0.00016986,2]
[361744599,1747751439010,-430.0,0.00016986,2]
[361744600,1747751439020,-490.0,0.00016986,2]
[361744601,1747751439030,-724.86,0.00016986,2]
[361744602,1747751439040,-529.42,0.00016986,2]
[361744603,1747751439051,-533.85,0.00016986,2]
[361744604,1747751439060,-472.03,0.00016986,2]
[361744605,1747751439070,-1104.88,0.00016986,2]
[361744606,1747751439080,-576.78,0.00016986,2]
[361744607,1747751439090,-288.99883356,0.00017066,2]
[361744608,1747751439101,-500.0,0.00017119,2]
[361744609,1747751439111,-422.65292303,0.0001715,2]
[361744610,1747751439121,-160.0,0.0001715,2]
[361744611,1747751439131,-212.38718278,0.0001715,2]
[361744612,1747751439141,-621.80784736,0.0001715,2]
[361744675,1747751445933,-619.52941511,0.000135,2]
[361744676,1747751446024,-1380.47058589,0.000135,2]
[361744677,1747751446035,-430.0,0.00016438,2]
[361744678,1747751446044,-430.0,0.00016712,2]
[361744679,1747751446053,-446.7472641,0.00016978,2]
[361744680,1747751446065,-548.44194169,0.00016978,2]
[361744681,1747751446077,-422.748628,0.00016978,2]
[361744682,1747751446166,-2375.51157544,0.00016978,2]
[361744683,1747751446179,-1206.55059077,0.00016978,2]
[361744684,1747751446189,-430.0,0.00016986,2]
[361744685,1747751446198,-272.83798597,0.0001715,2]
[361744686,1747751446208,-160.0,0.0001715,2]
[361744687,1747751446220,-160.0,0.0001715,2]
[361744688,1747751446237,-6612.66644702,0.00017176,2]
[361744689,1747751446247,-851.39669,0.00017182,2]
[361744690,1747751446257,-151.0,0.0001721,2]
[361744691,1747751446268,-276.185012,0.00017259,2]
[361744692,1747751446278,-276.185012,0.00017259,2]
[361744693,1747751446290,-173.761602,0.00017259,2]
[361744694,1747751446301,-500.0,0.00017259,2]
[361744695,1747751446311,-500.0,0.00017259,2]
[361744696,1747751446320,-500.0,0.00017259,2]
[361744697,1747751446329,-596.81487845,0.00017259,2]
[361744698,1747751446346,-500.0,0.00017259,2]
[361744699,1747751446361,-544.14219779,0.00017259,2]
[361744700,1747751446374,-500.0,0.00017259,2]
[361744701,1747751446388,-198.51552567,0.00017259,2]
[361744702,1747751446402,-500.0,0.00017259,2]
[361744704,1747751446413,-500.0,0.00017259,2]
[361744705,1747751446424,-500.0,0.00017259,2]
[361744706,1747751446436,-500.0,0.00017259,2]
[361744707,1747751446448,-500.0,0.00017259,2]
[361744708,1747751446459,-500.0,0.00017259,2]
[361744709,1747751446471,-500.0,0.00017259,2]
[361744710,1747751446484,-500.0,0.00017259,2]
[361744711,1747751446497,-500.0,0.00017259,2]
[361744712,1747751446509,-500.0,0.00017259,2]
[361744713,1747751446521,-500.0,0.00017259,2]
[361744714,1747751446538,-241.24242623,0.00017259,2]
[361744719,1747751917503,322390.44060747,0.00025,30]
[361744729,1747752324145,1102.0,0.000273,120]
[361744731,1747752469422,-2376.0,0.00013964,2]
[361744780,1747752632082,-259.9289717,0.00013546,2]
[361744782,1747752632092,-5000.0,0.00013562,2]
[361744784,1747752632102,-212.710692,0.00013699,2]
[361744786,1747752632112,-160.3320729,0.00014105,2]
[361744788,1747752632122,-858.73427325,0.0001456,2]
[361744790,1747752632131,-1200.0,0.00014711,2]
[361744792,1747752632140,-300.0,0.00014712,2]
[361744794,1747752632149,-300.0,0.00014712,2]
[361744796,1747752632159,-300.0,0.00014712,2]
[361744798,1747752632169,-300.0,0.00014712,2]
[361744800,1747752632178,-9429.8907382,0.00014714,2]
[361744802,1747752632187,-207.1967708,0.0001524,2]
[361744804,1747752632196,-4233.06512098,0.00015307,2]
[361744806,1747752632209,-20666.93487902,0.00015307,2]
[361744808,1747752632219,-421.15870297,0.00015364,2]
[361744810,1747752632228,-4644.76677815,0.00015464,2]
[361744812,1747752632238,-299.0,0.000158,2]
[361744813,1747752632247,-5152.46097495,0.000159,2]
[361744815,1747752632257,-420.0,0.00016106,2]
[361744817,1747752632266,-420.0,0.00016106,2]
[361744819,1747752632275,-420.0,0.00016106,2]
[361744821,1747752632285,-420.0,0.00016106,2]
[361744823,1747752632295,-17587.2112357,0.00016172,2]
[361744825,1747752632304,-170.3537195,0.00016178,2]
[361744827,1747752632313,-1680.0,0.00016182,2]
[361744829,1747752632323,-158.59444123,0.00016244,2]
[361744831,1747752632333,-500.0,0.00016244,2]
[361744833,1747752632342,-500.0,0.00016244,2]
[361744834,1747752632351,-386.33237369,0.00016244,2]
[361744836,1747752632361,-500.0,0.00016244,2]
[361744838,1747752632371,-392.86328296,0.00016244,2]
[361744840,1747752632380,-500.0,0.00016244,2]
[361744842,1747752632390,-500.0,0.00016244,2]
[361744844,1747752632399,-500.0,0.00016244,2]
[361744846,1747752632408,-500.0,0.00016244,2]
[361744848,1747752632418,-500.0,0.00016244,2]
[361744850,1747752632428,-500.0,0.00016244,2]
[361744852,1747752632438,-500.0,0.00016244,2]
[361744854,1747752632448,-500.0,0.00016244,2]
[361744856,1747752632457,-500.0,0.00016244,2]
[361744858,1747752632467,-500.0,0.00016244,2]
[361744860,1747752632476,-500.0,0.00016244,2]
[361744861,1747752632486,-500.0,0.00016244,2]
[361744863,1747752632495,-500.0,0.00016244,2]
[361744865,1747752632505,-500.0,0.00016244,2]
[361744867,1747752632514,-500.0,0.00016244,2]
[361744869,1747752632523,-500.0,0.00016244,2]
[361744870,1747752632532,-500.0,0.00016244,2]
[361744872,1747752632542,-500.0,0.00016244,2]
[361744873,1747752632551,-500.0,0.00016244,2]
[361744874,1747752632562,-500.0,0.00016244,2]
[361744875,1747752632572,-471.05929337,0.00016244,2]
[361744878,1747752632593,-500.0,0.00016244,2]
[361744880,1747752632608,-500.0,0.00016244,2]
[361744882,1747752632619,-500.0,0.00016244,2]
[361744884,1747752632628,-500.0,0.00016244,2]
[361744885,1747752632639,-336.38151942,0.00016244,2]
[361744887,1747752632649,-453.49987673,0.00016244,2]
[361744889,1747752632659,-500.0,0.00016244,2]
[361744890,1747752632669,-500.0,0.00016244,2]
[361744892,1747752632680,-500.0,0.00016244,2]
[361744894,1747752632690,-500.0,0.00016244,2]
[361744895,1747752632699,-500.0,0.00016244,2]
[361744897,1747752632710,-500.0,0.00016244,2]
[361744898,1747752632719,-500.0,0.00016244,2]
[361744899,1747752632729,-500.0,0.00016244,2]
[361744900,1747752632739,-500.0,0.00016244,2]
[361744901,1747752632749,-500.0,0.00016244,2]
[361744902,1747752632759,-500.0,0.00016244,2]
[361744903,1747752632769,-5152.46097477,0.00016245,2]
[361744904,1747752632779,-351.5976441,0.00016278,2]
[361744905,1747752632789,-3389.92254388,0.00016338,2]
[361744906,1747752632799,-175.9907377,0.00016378,2]
[361744907,1747752632809,-175.9907377,0.00016378,2]
[361744908,1747752632820,-175.0747531,0.00016378,2]
[361744909,1747752632830,-160.0,0.00016437,2]
[361744910,1747752632842,-151.0,0.00016438,2]
[361744911,1747752632852,-151.0,0.00016438,2]
[361744912,1747752632862,-400.0,0.00016438,2]
[361744913,1747752632872,-400.0,0.00016438,2]
[361744914,1747752632883,-403.85930684,0.00016438,2]
[361744915,1747752632894,-400.0,0.00016438,2]
[361744916,1747752632905,-400.0,0.00016438,2]
[361744917,1747752632915,-430.0,0.00016438,2]
[361744918,1747752632925,-430.0,0.00016438,2]
[361744919,1747752632935,-400.0,0.00016438,2]
[361744920,1747752632945,-265.26388112,0.00016438,2]
[361744921,1747752632956,-430.0,0.00016438,2]
[361744922,1747752632967,-534.08,0.00016438,2]
[361744923,1747752632977,-430.0,0.00016438,2]
[361744924,1747752632987,-400.0,0.00016438,2]
[361744925,1747752632996,-450.0,0.00016438,2]
[361744926,1747752633006,-450.0,0.00016438,2]
[361744927,1747752633015,-450.0,0.00016438,2]
[361744928,1747752633025,-430.0,0.00016438,2]
[361744929,1747752633035,-430.0,0.00016438,2]
[361744930,1747752633045,-151.0,0.00016438,2]
[361744931,1747752633054,-634.25,0.00016438,2]
[361744932,1747752633064,-430.0,0.00016438,2]
[361744933,1747752633074,-588.17,0.00016438,2]
[361744934,1747752633083,-430.0,0.00016438,2]
[361744935,1747752633093,-430.0,0.00016438,2]
[361744936,1747752633103,-430.0,0.00016438,2]
[361744937,1747752633113,-583.01,0.00016438,2]
[361744938,1747752633123,-430.0,0.00016438,2]
[361744939,1747752633132,-430.0,0.00016438,2]
[361744940,1747752633142,-430.0,0.00016438,2]
[361744941,1747752633152,-430.0,0.00016438,2]
[361744942,1747752633162,-430.0,0.00016438,2]
[361744943,1747752633172,-430.0,0.00016438,2]
[361744944,1747752633182,-1077.82,0.00016438,2]
[361744945,1747752633192,-452.75,0.00016438,2]
[361744946,1747752633202,-430.0,0.00016438,2]
[361744947,1747752633212,-430.0,0.00016438,2]
[361744948,1747752633222,-430.0,0.00016438,2]
[361744949,1747752633232,-430.0,0.00016438,2]
[361744950,1747752633241,-478.81,0.00016438,2]
[361744951,1747752633251,-430.0,0.00016438,2]
[361744952,1747752633262,-430.0,0.00016438,2]
[361744953,1747752633272,-430.0,0.00016438,2]
[361744954,1747752633282,-437.82,0.00016438,2]
[361744955,1747752633292,-430.0,0.00016438,2]
[361744956,1747752633301,-430.0,0.00016438,2]
[361744957,1747752633311,-519.36050103,0.00016438,2]
[361744958,1747752633322,-1533.27,0.00016438,2]
[361744959,1747752633331,-430.0,0.00016438,2]
[361744960,1747752633340,-218.68031941,0.00016438,2]
[361744961,1747752633350,-430.0,0.00016438,2]
[361744962,1747752633360,-400.0,0.00016438,2]
[361744963,1747752633370,-430.0,0.00016438,2]
[361744964,1747752633379,-430.0,0.00016438,2]
[361744965,1747752633389,-430.0,0.00016438,2]
[361744966,1747752633399,-430.0,0.00016438,2]
[361744967,1747752633408,-499.23,0.00016438,2]
[361744968,1747752633418,-430.0,0.00016438,2]
[361744969,1747752633427,-430.0,0.00016438,2]
[361744970,1747752633438,-538.24,0.00016438,2]
[361744971,1747752633448,-430.0,0.00016438,2]
[361744972,1747752633459,-430.0,0.00016438,2]
[361744973,1747752633468,-469.28,0.00016438,2]
[361744974,1747752633478,-430.0,0.00016438,2]
[361744975,1747752633488,-477.31,0.00016438,2]
[361744976,1747752633498,-1126.95,0.00016438,2]
[361744977,1747752633507,-400.0,0.00016438,2]
[361744978,1747752633516,-430.0,0.00016438,2]
[361744979,1747752633526,-162.74368205,0.00016438,2]
[361744980,1747752633537,-571.74,0.00016438,2]
[361744981,1747752633547,-430.0,0.00016438,2]
[361744982,1747752633556,-175.9907377,0.00016478,2]
[361744983,1747752633566,-6158.17442088,0.00016556,2]
[361744984,1747752633576,-5152.46097477,0.0001659,2]
[361744985,1747752633586,-151.0,0.00016612,2]
[361744986,1747752633599,-151.0,0.00016612,2]
[361744987,1747752633608,-151.0,0.00016612,2]
[361744988,1747752633618,-200.83723,0.00016612,2]
[361744989,1747752633628,-200.83723,0.00016612,2]
[361744990,1747752633638,-151.0,0.00016712,2]
[361744991,1747752633649,-151.0,0.00016712,2]
[361744992,1747752633659,-151.0,0.00016712,2]
[361744993,1747752633669,-151.0,0.00016712,2]
[361744994,1747752633680,-151.0,0.00016712,2]
[361744995,1747752633689,-151.0,0.00016712,2]
[361744996,1747752633699,-430.0,0.00016712,2]
[361744997,1747752633710,-430.0,0.00016712,2]
[361744998,1747752633720,-151.0,0.00016712,2]
[361744999,1747752633730,-292.018692,0.00016712,2]
[361745000,1747752633740,-151.0,0.00016712,2]
[361745001,1747752633750,-155.129166,0.00016712,2]
[361745002,1747752633760,-151.0,0.00016712,2]
[361745003,1747752633770,-151.378151,0.00016712,2]
[361745004,1747752633779,-151.0,0.00016712,2]
[361745005,1747752633789,-151.0,0.00016712,2]
[361745006,1747752633799,-151.0,0.00016712,2]
[361745007,1747752633809,-430.0,0.00016712,2]
[361745008,1747752633818,-430.0,0.00016712,2]
[361745009,1747752633828,-151.0,0.00016712,2]
[361745010,1747752633837,-151.0,0.00016712,2]
[361745011,1747752633848,-151.0,0.00016712,2]
[361745012,1747752633857,-151.0,0.00016712,2]
[361745013,1747752633866,-151.0,0.00016712,2]
[361745014,1747752633876,-151.0,0.00016712,2]
[361745015,1747752633885,-430.0,0.00016712,2]
[361745016,1747752633895,-430.0,0.00016712,2]
[361745017,1747752633904,-151.0,0.00016712,2]
[361745018,1747752633914,-151.0,0.00016712,2]
[361745019,1747752633924,-151.0,0.00016712,2]
[361745020,1747752633933,-151.0,0.00016712,2]
[361745021,1747752633944,-151.0,0.00016712,2]
[361745022,1747752633954,-217.821786,0.00016712,2]
[361745023,1747752633964,-151.0,0.00016712,2]
[361745024,1747752633974,-151.0,0.00016712,2]
[361745025,1747752633984,-634.25,0.00016712,2]
[361745026,1747752633993,-151.0,0.00016712,2]
[361745027,1747752634004,-430.0,0.00016712,2]
[361745028,1747752634014,-588.17,0.00016712,2]
[361745029,1747752634023,-430.0,0.00016712,2]
[361745030,1747752634033,-151.0,0.00016712,2]
[361745031,1747752634044,-430.0,0.00016712,2]
[361745032,1747752634054,-430.0,0.00016712,2]
[361745033,1747752634064,-583.01,0.00016712,2]
[361745034,1747752634074,-430.0,0.00016712,2]
[361745035,1747752634084,-492.500268,0.00016712,2]
[361745036,1747752634094,-249.41596048,0.00016712,2]
[361745037,1747752634104,-430.0,0.00016712,2]
[361745038,1747752634114,-492.500268,0.00016712,2]
[361745039,1747752634125,-200.83723,0.00016712,2]
[361745040,1747752634134,-151.0,0.00016712,2]
[361745041,1747752634146,-200.83723,0.00016712,2]
[361745042,1747752634155,-430.0,0.00016712,2]
[361745043,1747752634166,-430.0,0.00016712,2]
[361745044,1747752634175,-430.0,0.00016712,2]
[361745045,1747752634185,-151.0,0.00016712,2]
[361745046,1747752634195,-1077.82,0.00016712,2]
[361745047,1747752634206,-452.75,0.00016712,2]
[361745048,1747752634216,-314.01,0.00016712,2]
[361745049,1747752634226,-430.0,0.00016712,2]
[361745050,1747752634236,-230.338317,0.00016712,2]
[361745051,1747752634246,-430.0,0.00016712,2]
[361745052,1747752634256,-430.0,0.00016712,2]
[361745053,1747752634266,-230.338317,0.00016712,2]
[361745054,1747752634275,-430.0,0.00016712,2]
[361745055,1747752634285,-430.0,0.00016712,2]
[361745056,1747752634295,-430.0,0.00016712,2]
[361745057,1747752634304,-437.82,0.00016712,2]
[361745058,1747752634314,-430.0,0.00016712,2]
[361745059,1747752634324,-430.0,0.00016712,2]
[361745060,1747752634334,-1533.27,0.00016712,2]
[361745061,1747752634345,-430.0,0.00016712,2]
[361745062,1747752634355,-430.0,0.00016712,2]
[361745063,1747752634369,-151.0,0.00016712,2]
[361745064,1747752634379,-430.0,0.00016712,2]
[361745065,1747752634389,-430.0,0.00016712,2]
[361745066,1747752634399,-430.0,0.00016712,2]
[361745067,1747752634409,-430.0,0.00016712,2]
[361745068,1747752634418,-499.23,0.00016712,2]
[361745069,1747752634428,-430.0,0.00016712,2]
[361745070,1747752634439,-325.67660602,0.00016712,2]
[361745071,1747752634449,-538.24,0.00016712,2]
[361745072,1747752634460,-151.0,0.00016712,2]
[361745073,1747752634470,-430.0,0.00016712,2]
[361745074,1747752634481,-430.0,0.00016712,2]
[361745075,1747752634490,-469.28,0.00016712,2]
[361745076,1747752634500,-430.0,0.00016712,2]
[361745077,1747752634510,-477.31,0.00016712,2]
[361745078,1747752634520,-1126.95,0.00016712,2]
[361745079,1747752634531,-543.8,0.00016712,2]
[361745080,1747752634540,-571.74,0.00016712,2]
[361745081,1747752634550,-430.0,0.00016712,2]
[361745082,1747752634560,-421.15870295,0.00016726,2]
[361745083,1747752634569,-3290.55979587,0.00016877,2]
[361745084,1747752634579,-151.0,0.00016877,2]
[361745085,1747752634590,-151.0,0.00016877,2]
[361745086,1747752634602,-492.500268,0.00016877,2]
[361745087,1747752634612,-492.500268,0.00016877,2]
[361745088,1747752634621,-151.0,0.00016877,2]
[361745089,1747752634632,-151.0,0.00016877,2]
[361745090,1747752634642,-230.338317,0.00016877,2]
[361745091,1747752634652,-230.338317,0.00016877,2]
[361745092,1747752634662,-151.0,0.00016877,2]
[361745093,1747752634673,-168.026876,0.00016877,2]
[361745094,1747752634684,-5152.46097477,0.00016934,2]
[361745095,1747752634694,-158.280771,0.00016953,3]
[361745096,1747752634705,-151.0,0.00016984,2]
[361745097,1747752634715,-15867.4713912,0.00016985,2]
[361745098,1747752634725,-151.0,0.00016985,2]
[361745099,1747752634735,-151.0,0.00016985,2]
[361745100,1747752634744,-151.0,0.00016985,2]
[361745101,1747752634754,-151.0,0.00016985,2]
[361745102,1747752634763,-151.0,0.00016985,2]
[361745103,1747752634772,-151.0,0.00016985,2]
[361745104,1747752634782,-151.0,0.00016985,2]
[361745105,1747752634793,-151.0,0.00016986,2]
[361745106,1747752634805,-151.0,0.00016986,2]
[361745107,1747752634815,-151.0,0.00016986,2]
[361745108,1747752634825,-151.0,0.00016986,2]
[361745109,1747752634835,-430.0,0.00016986,2]
[361745110,1747752634845,-430.0,0.00016986,2]
[361745111,1747752634854,-151.0,0.00016986,2]
[361745112,1747752634864,-230.948874,0.00016986,2]
[361745113,1747752634874,-151.0,0.00016986,2]
[361745114,1747752634884,-151.0,0.00016986,2]
[361745115,1747752634894,-430.0,0.00016986,2]
[361745116,1747752634904,-430.0,0.00016986,2]
[361745117,1747752634914,-151.0,0.00016986,2]
[361745118,1747752634923,-151.0,0.00016986,2]
[361745119,1747752634933,-430.0,0.00016986,2]
[361745120,1747752634943,-490.0,0.00016986,2]
[361745121,1747752634956,-151.0,0.00016986,2]
[361745122,1747752634966,-151.0,0.00016986,2]
[361745123,1747752634976,-151.0,0.00016986,2]
[361745124,1747752634986,-151.0,0.00016986,2]
[361745125,1747752634996,-634.25,0.00016986,2]
[361745126,1747752635005,-377.87570006,0.00016986,2]
[361745127,1747752635015,-588.17,0.00016986,2]
[361745128,1747752635024,-430.0,0.00016986,2]
[361745129,1747752635034,-151.0,0.00016986,2]
[361745130,1747752635044,-490.0,0.00016986,2]
[361745131,1747752635053,-430.0,0.00016986,2]
[361745132,1747752635062,-583.01,0.00016986,2]
[361745133,1747752635072,-430.0,0.00016986,2]
[361745134,1747752635082,-492.500268,0.00016986,2]
[361745135,1747752635092,-430.0,0.00016986,2]